[Event "Titled Tuesday Blitz August 15 Late 2023"]
[White "Elsa167"]
[Black "Delorme, Laurie"]
[BlackFideId "630829"]
[WhiteElo "2952"]
[BlackElo "2201"]
[Result "0-1"]
[Round "4"]
[TimeControl "180+1"]
[Date "2023.08.15"]
[WhiteClock "0:00:00"]
[BlackClock "0:00:04"]
[Board "15"]

1. d4 {[%clk 0:03:00]}  Nf6 {[%clk 0:02:59]} 2. c4 {[%clk 0:03:00]}  e6 {[%clk 0:03:00]} 3. Nf3 {[%clk 0:03:01]}  d5 {[%clk 0:03:00]} 4. Nc3 {[%clk 0:03:01]}  Bb4 {[%clk 0:03:00]} 5. Bg5 {[%clk 0:03:01]}  h6 {[%clk 0:03:00]} 6. Bxf6 {[%clk 0:03:02]}  Qxf6 {[%clk 0:03:01]} 7. e3 {[%clk 0:03:02]}  O-O {[%clk 0:03:00]} 8. Rc1 {[%clk 0:03:03]}  Rd8 {[%clk 0:02:59]} 9. a3 {[%clk 0:02:52]}  Bxc3+ {[%clk 0:02:59]} 10. Rxc3 {[%clk 0:02:52]}  c5 {[%clk 0:02:47]} 11. cxd5 {[%clk 0:02:50]}  Rxd5 {[%clk 0:02:36]} 12. e4 {[%clk 0:02:35]}  Rd8 {[%clk 0:02:19]} 13. Rxc5 {[%clk 0:02:34]}  b6 {[%clk 0:02:13]} 14. Rc3 {[%clk 0:02:23]}  Bb7 {[%clk 0:02:10]} 15. e5 {[%clk 0:01:54]}  Qf4 {[%clk 0:02:00]} 16. Qc1 {[%clk 0:01:29]}  Qxc1+ {[%clk 0:01:08]} 17. Rxc1 {[%clk 0:01:30]}  Nc6 {[%clk 0:01:08]} 18. Rd1 {[%clk 0:01:29]}  Ne7 {[%clk 0:01:04]} 19. Be2 {[%clk 0:01:19]}  Nf5 {[%clk 0:00:57]} 20. O-O {[%clk 0:01:08]}  Rac8 {[%clk 0:00:56]} 21. Rc1 {[%clk 0:00:58]}  Bxf3 {[%clk 0:00:46]} 22. Bxf3 {[%clk 0:00:58]}  Nxd4 {[%clk 0:00:47]} 23. Rxc8 {[%clk 0:00:47]}  Nxf3+ {[%clk 0:00:45]} 24. gxf3 {[%clk 0:00:46]}  Rxc8 {[%clk 0:00:46]} 25. Rd1 {[%clk 0:00:47]}  Rc2 {[%clk 0:00:43]} 26. Rd8+ {[%clk 0:00:47]}  Kh7 {[%clk 0:00:43]} 27. Rd7 {[%clk 0:00:48]}  Kg6 {[%clk 0:00:41]} 28. b4 {[%clk 0:00:45]}  a5 {[%clk 0:00:26]} 29. Rb7 {[%clk 0:00:42]}  Rc3 {[%clk 0:00:25]} 30. Rxb6 {[%clk 0:00:35]}  Rxa3 {[%clk 0:00:24]} 31. bxa5 {[%clk 0:00:30]}  Rxa5 {[%clk 0:00:24]} 32. f4 {[%clk 0:00:31]}  Ra4 {[%clk 0:00:21]} 33. Kg2 {[%clk 0:00:26]}  Rxf4 {[%clk 0:00:22]} 34. Kg3 {[%clk 0:00:26]}  Ra4 {[%clk 0:00:20]} 35. Rb7 {[%clk 0:00:25]}  h5 {[%clk 0:00:19]} 36. h3 {[%clk 0:00:18]}  Re4 {[%clk 0:00:17]} 37. f4 {[%clk 0:00:13]}  Ra4 {[%clk 0:00:16]} 38. Rc7 {[%clk 0:00:12]}  Rb4 {[%clk 0:00:16]} 39. Rd7 {[%clk 0:00:12]}  Rb3+ {[%clk 0:00:15]} 40. Kg2 {[%clk 0:00:12]}  h4 {[%clk 0:00:15]} 41. Ra7 {[%clk 0:00:11]}  Rg3+ {[%clk 0:00:15]} 42. Kh2 {[%clk 0:00:12]}  Rf3 {[%clk 0:00:15]} 43. Ra4 {[%clk 0:00:11]}  Kf5 {[%clk 0:00:15]} 44. Ra7 {[%clk 0:00:11]}  Kg6 {[%clk 0:00:11]} 45. Ra4 {[%clk 0:00:10]}  Rf2+ {[%clk 0:00:11]} 46. Kg1 {[%clk 0:00:10]}  Rb2 {[%clk 0:00:11]} 47. Rc4 {[%clk 0:00:09]}  Kf5 {[%clk 0:00:11]} 48. Rc7 {[%clk 0:00:09]}  Kg6 {[%clk 0:00:05]} 49. Rc4 {[%clk 0:00:09]}  Ra2 {[%clk 0:00:06]} 50. Rb4 {[%clk 0:00:09]}  Ra7 {[%clk 0:00:03]} 51. Kg2 {[%clk 0:00:06]}  Kf5 {[%clk 0:00:03]} 52. Kf2 {[%clk 0:00:04]}  Ra2+ {[%clk 0:00:03]} 53. Kf3 {[%clk 0:00:04]}  Ra3+ {[%clk 0:00:03]} 54. Kg2 {[%clk 0:00:05]}  f6 {[%clk 0:00:02]} 55. exf6 {[%clk 0:00:05]}  gxf6 {[%clk 0:00:03]} 56. Rc4 {[%clk 0:00:02]}  Rd3 {[%clk 0:00:03]} 57. Rb4 {[%clk 0:00:02]}  Re3 {[%clk 0:00:03]} 58. Rb8 {[%clk 0:00:02]}  Kxf4 {[%clk 0:00:03]} 59. Rh8 {[%clk 0:00:02]}  Re2+ {[%clk 0:00:03]} 60. Kg1 {[%clk 0:00:02]}  Kg3 {[%clk 0:00:03]} 61. Kf1 {[%clk 0:00:02]}  Ra2 {[%clk 0:00:03]} 62. Rh6 {[%clk 0:00:02]}  Rf2+ {[%clk 0:00:02]} 63. Kg1 {[%clk 0:00:03]}  Rf5 {[%clk 0:00:03]} 64. Rg6+ {[%clk 0:00:02]}  Kxh3 {[%clk 0:00:03]} 65. Kh1 {[%clk 0:00:00]}  Rf1+ {[%clk 0:00:04]} 0-1


[Site "https://www.chess.com"]

[Event "Titled Tuesday Blitz August 15 Late 2023"]
[White "Martinez Alcantara, Jose Eduardo"]
[Black "Leiva, Gianmarco"]
[WhiteFideId "3805662"]
[BlackFideId "3804399"]
[WhiteElo "3014"]
[BlackElo "2711"]
[Result "1-0"]
[Round "4"]
[TimeControl "180+1"]
[Date "2023.08.15"]
[WhiteClock "0:00:17"]
[BlackClock "0:00:00"]
[Board "18"]

1. e4 {[%clk 0:03:00]}  c5 {[%clk 0:02:59]} 2. Nf3 {[%clk 0:03:01]}  d6 {[%clk 0:02:59]} 3. c3 {[%clk 0:03:01]}  Nf6 {[%clk 0:02:59]} 4. h3 {[%clk 0:03:02]}  Nc6 {[%clk 0:02:53]} 5. Bd3 {[%clk 0:02:59]}  e5 {[%clk 0:02:38]} 6. Bc2 {[%clk 0:02:59]}  g6 {[%clk 0:02:38]} 7. O-O {[%clk 0:02:59]}  Bg7 {[%clk 0:02:38]} 8. d4 {[%clk 0:02:59]}  cxd4 {[%clk 0:02:38]} 9. cxd4 {[%clk 0:03:00]}  exd4 {[%clk 0:02:39]} 10. Nxd4 {[%clk 0:03:01]}  O-O {[%clk 0:02:39]} 11. Nxc6 {[%clk 0:03:02]}  bxc6 {[%clk 0:02:39]} 12. Nc3 {[%clk 0:03:02]}  d5 {[%clk 0:02:37]} 13. Bg5 {[%clk 0:03:01]}  h6 {[%clk 0:02:13]} 14. Be3 {[%clk 0:03:00]}  Nxe4 {[%clk 0:02:03]} 15. Nxe4 {[%clk 0:02:59]}  dxe4 {[%clk 0:02:03]} 16. Bxe4 {[%clk 0:03:00]}  Be6 {[%clk 0:01:59]} 17. b3 {[%clk 0:02:58]}  Bd5 {[%clk 0:01:57]} 18. Bxd5 {[%clk 0:02:56]}  Qxd5 {[%clk 0:01:56]} 19. Rc1 {[%clk 0:02:54]}  a5 {[%clk 0:01:54]} 20. Rc5 {[%clk 0:02:45]}  Qe6 {[%clk 0:01:49]} 21. Qc2 {[%clk 0:02:41]}  Rfc8 {[%clk 0:01:33]} 22. Rc1 {[%clk 0:02:41]}  a4 {[%clk 0:01:30]} 23. bxa4 {[%clk 0:02:38]}  Ra6 {[%clk 0:01:26]} 24. Rc4 {[%clk 0:02:25]}  h5 {[%clk 0:01:20]} 25. Qe4 {[%clk 0:01:48]}  Qd7 {[%clk 0:01:10]} 26. Qf3 {[%clk 0:01:28]}  Bb2 {[%clk 0:00:56]} 27. Rd1 {[%clk 0:01:25]}  Qe6 {[%clk 0:00:55]} 28. Qf4 {[%clk 0:01:02]}  Bg7 {[%clk 0:00:22]} 29. Rdc1 {[%clk 0:00:53]}  Bb2 {[%clk 0:00:18]} 30. R1c2 {[%clk 0:00:52]}  Bg7 {[%clk 0:00:17]} 31. h4 {[%clk 0:00:53]}  Bf8 {[%clk 0:00:17]} 32. g3 {[%clk 0:00:52]}  Qd5 {[%clk 0:00:15]} 33. Qe4 {[%clk 0:00:52]}  Qd1+ {[%clk 0:00:14]} 34. Kg2 {[%clk 0:00:51]}  Qd7 {[%clk 0:00:13]} 35. Qf3 {[%clk 0:00:46]}  Rca8 {[%clk 0:00:11]} 36. Bd4 {[%clk 0:00:40]}  Qd5 {[%clk 0:00:07]} 37. Bf6 {[%clk 0:00:22]}  Qxf3+ {[%clk 0:00:03]} 38. Kxf3 {[%clk 0:00:23]}  c5 {[%clk 0:00:03]} 39. Bg5 {[%clk 0:00:13]}  Rxa4 {[%clk 0:00:04]} 40. Rxa4 {[%clk 0:00:13]}  Rxa4 {[%clk 0:00:04]} 41. Be3 {[%clk 0:00:14]}  c4 {[%clk 0:00:04]} 42. Ke4 {[%clk 0:00:15]}  Be7 {[%clk 0:00:01]} 43. Kd5 {[%clk 0:00:15]}  Bf8 {[%clk 0:00:02]} 44. Kc6 {[%clk 0:00:16]}  Be7 {[%clk 0:00:02]} 45. Bd2 {[%clk 0:00:15]}  Bf8 {[%clk 0:00:02]} 46. Kb5 {[%clk 0:00:16]}  Ra3 {[%clk 0:00:02]} 47. Kxc4 {[%clk 0:00:16]}  Rf3 {[%clk 0:00:02]} 48. Be3 {[%clk 0:00:16]}  Kh7 {[%clk 0:00:02]} 49. a4 {[%clk 0:00:17]}  Bh6 {[%clk 0:00:02]} 50. Bxh6 {[%clk 0:00:15]}  Kxh6 {[%clk 0:00:03]} 51. Ra2 {[%clk 0:00:15]}  Rf6 {[%clk 0:00:02]} 52. a5 {[%clk 0:00:16]}  Rc6+ {[%clk 0:00:02]} 53. Kb5 {[%clk 0:00:16]}  Rc8 {[%clk 0:00:00]} 54. a6 {[%clk 0:00:17]} 1-0


[Site "https://www.chess.com"]

[Event "Titled Tuesday Blitz August 15 Late 2023"]
[White "Bjelobrk, Igor"]
[Black "Indjic, Aleksandar"]
[WhiteFideId "4300726"]
[BlackFideId "911925"]
[WhiteElo "2670"]
[BlackElo "2997"]
[Result "1/2-1/2"]
[Round "4"]
[TimeControl "180+1"]
[Date "2023.08.15"]
[WhiteClock "0:00:11"]
[BlackClock "0:00:08"]
[Board "19"]

1. d4 {[%clk 0:02:55]}  Nf6 {[%clk 0:02:56]} 2. c4 {[%clk 0:02:55]}  e6 {[%clk 0:02:56]} 3. g3 {[%clk 0:02:55]}  c5 {[%clk 0:02:56]} 4. d5 {[%clk 0:02:54]}  d6 {[%clk 0:02:56]} 5. Nc3 {[%clk 0:02:53]}  exd5 {[%clk 0:02:56]} 6. cxd5 {[%clk 0:02:52]}  g6 {[%clk 0:02:57]} 7. Nf3 {[%clk 0:02:53]}  Bg7 {[%clk 0:02:57]} 8. Bg2 {[%clk 0:02:54]}  O-O {[%clk 0:02:58]} 9. O-O {[%clk 0:02:54]}  Re8 {[%clk 0:02:58]} 10. Nd2 {[%clk 0:02:50]}  Nbd7 {[%clk 0:02:51]} 11. a4 {[%clk 0:02:46]}  b6 {[%clk 0:02:49]} 12. h3 {[%clk 0:02:43]}  a6 {[%clk 0:02:32]} 13. Nc4 {[%clk 0:02:42]}  Ne5 {[%clk 0:02:31]} 14. Nxe5 {[%clk 0:02:41]}  Rxe5 {[%clk 0:02:31]} 15. e4 {[%clk 0:02:41]}  Re8 {[%clk 0:02:29]} 16. Bg5 {[%clk 0:02:38]}  h6 {[%clk 0:02:26]} 17. Bf4 {[%clk 0:02:38]}  Rb8 {[%clk 0:02:22]} 18. Qd2 {[%clk 0:02:34]}  g5 {[%clk 0:02:16]} 19. Be3 {[%clk 0:02:34]}  b5 {[%clk 0:02:16]} 20. axb5 {[%clk 0:02:33]}  axb5 {[%clk 0:02:17]} 21. f3 {[%clk 0:02:12]}  b4 {[%clk 0:02:16]} 22. Nd1 {[%clk 0:02:13]}  Bd7 {[%clk 0:02:16]} 23. Nf2 {[%clk 0:02:10]}  Bb5 {[%clk 0:02:10]} 24. Rfe1 {[%clk 0:02:07]}  Nh5 {[%clk 0:02:09]} 25. Kh2 {[%clk 0:02:04]}  Qf6 {[%clk 0:01:09]} 26. Rab1 {[%clk 0:01:59]}  Qg6 {[%clk 0:01:07]} 27. Bf1 {[%clk 0:01:50]}  Be5 {[%clk 0:01:04]} 28. Nh1 {[%clk 0:01:47]}  Qf6 {[%clk 0:01:03]} 29. Bxb5 {[%clk 0:01:43]}  Rxb5 {[%clk 0:01:04]} 30. Qe2 {[%clk 0:01:42]}  Rbb8 {[%clk 0:01:04]} 31. Rf1 {[%clk 0:01:33]}  Bd4 {[%clk 0:01:01]} 32. Bxd4 {[%clk 0:01:20]}  Qxd4 {[%clk 0:01:02]} 33. Qf2 {[%clk 0:01:08]}  Qxf2+ {[%clk 0:00:59]} 34. Nxf2 {[%clk 0:01:08]}  Nf6 {[%clk 0:00:58]} 35. b3 {[%clk 0:01:03]}  Ra8 {[%clk 0:00:58]} 36. Ra1 {[%clk 0:01:03]}  Ra3 {[%clk 0:00:42]} 37. Rxa3 {[%clk 0:01:02]}  bxa3 {[%clk 0:00:43]} 38. Ra1 {[%clk 0:01:02]}  Ra8 {[%clk 0:00:43]} 39. Ra2 {[%clk 0:00:41]}  Nd7 {[%clk 0:00:41]} 40. Nd1 {[%clk 0:00:41]}  c4 {[%clk 0:00:35]} 41. bxc4 {[%clk 0:00:39]}  Ne5 {[%clk 0:00:36]} 42. Ne3 {[%clk 0:00:36]}  Nxf3+ {[%clk 0:00:23]} 43. Kg2 {[%clk 0:00:36]}  Nd4 {[%clk 0:00:20]} 44. Kf2 {[%clk 0:00:33]}  Kg7 {[%clk 0:00:20]} 45. Nf5+ {[%clk 0:00:27]}  Nxf5 {[%clk 0:00:20]} 46. exf5 {[%clk 0:00:27]}  Kf6 {[%clk 0:00:21]} 47. g4 {[%clk 0:00:28]}  Ra4 {[%clk 0:00:20]} 48. Ke3 {[%clk 0:00:26]}  Ke5 {[%clk 0:00:20]} 49. Kd3 {[%clk 0:00:25]}  Kf4 {[%clk 0:00:20]} 50. Kc3 {[%clk 0:00:25]}  Ra8 {[%clk 0:00:19]} 51. Kb4 {[%clk 0:00:23]}  Rb8+ {[%clk 0:00:19]} 52. Kc3 {[%clk 0:00:20]}  Ra8 {[%clk 0:00:16]} 53. Kb4 {[%clk 0:00:20]}  Rb8+ {[%clk 0:00:17]} 54. Kc3 {[%clk 0:00:21]}  Kg3 {[%clk 0:00:17]} 55. Rxa3 {[%clk 0:00:20]}  Kxh3 {[%clk 0:00:18]} 56. c5 {[%clk 0:00:19]}  dxc5 {[%clk 0:00:18]} 57. Kc4+ {[%clk 0:00:19]}  Kxg4 {[%clk 0:00:18]} 58. f6 {[%clk 0:00:19]}  h5 {[%clk 0:00:17]} 59. Ra7 {[%clk 0:00:15]}  Rf8 {[%clk 0:00:16]} 60. d6 {[%clk 0:00:14]}  h4 {[%clk 0:00:16]} 61. d7 {[%clk 0:00:14]}  h3 {[%clk 0:00:15]} 62. Kxc5 {[%clk 0:00:13]}  h2 {[%clk 0:00:14]} 63. Ra1 {[%clk 0:00:14]}  Kf5 {[%clk 0:00:10]} 64. Kd6 {[%clk 0:00:14]}  Kxf6 {[%clk 0:00:10]} 65. Rh1 {[%clk 0:00:14]}  Rh8 {[%clk 0:00:09]} 66. Kc7 {[%clk 0:00:12]}  g4 {[%clk 0:00:05]} 67. Rxh2 {[%clk 0:00:11]}  Ra8 {[%clk 0:00:05]} 68. d8=Q+ {[%clk 0:00:10]}  Rxd8 {[%clk 0:00:04]} 69. Kxd8 {[%clk 0:00:11]}  Kg5 {[%clk 0:00:05]} 70. Ke7 {[%clk 0:00:11]}  f5 {[%clk 0:00:05]} 71. Ke6 {[%clk 0:00:11]}  g3 {[%clk 0:00:06]} 72. Rh8 {[%clk 0:00:10]}  Kf4 {[%clk 0:00:06]} 73. Rf8 {[%clk 0:00:10]}  Kg4 {[%clk 0:00:05]} 74. Rxf5 {[%clk 0:00:10]}  g2 {[%clk 0:00:06]} 75. Rf8 {[%clk 0:00:11]}  Kg3 {[%clk 0:00:06]} 76. Rg8+ {[%clk 0:00:11]}  Kf2 {[%clk 0:00:07]} 77. Rxg2+ {[%clk 0:00:11]}  Kxg2 {[%clk 0:00:08]} 1/2-1/2


[Site "https://www.chess.com"]

[Event "Titled Tuesday Blitz August 15 Late 2023"]
[White "Rastbod, Ali"]
[Black "Paravyan, David"]
[WhiteFideId "12567477"]
[BlackFideId "4194985"]
[WhiteElo "2669"]
[BlackElo "2967"]
[Result "0-1"]
[Round "4"]
[TimeControl "180+1"]
[Date "2023.08.15"]
[WhiteClock "0:00:05"]
[BlackClock "0:00:06"]
[Board "20"]

1. c4 {[%clk 0:02:56]}  c5 {[%clk 0:02:52]} 2. g3 {[%clk 0:02:55]}  g6 {[%clk 0:02:53]} 3. Bg2 {[%clk 0:02:56]}  Bg7 {[%clk 0:02:53]} 4. Nc3 {[%clk 0:02:57]}  Nc6 {[%clk 0:02:52]} 5. a3 {[%clk 0:02:57]}  Nf6 {[%clk 0:02:52]} 6. Rb1 {[%clk 0:02:57]}  O-O {[%clk 0:02:52]} 7. b4 {[%clk 0:02:57]}  cxb4 {[%clk 0:02:53]} 8. axb4 {[%clk 0:02:57]}  a5 {[%clk 0:02:53]} 9. b5 {[%clk 0:02:54]}  Nb4 {[%clk 0:02:53]} 10. Ba3 {[%clk 0:02:41]}  d5 {[%clk 0:02:37]} 11. cxd5 {[%clk 0:02:41]}  Bf5 {[%clk 0:02:26]} 12. e4 {[%clk 0:02:41]}  Nd3+ {[%clk 0:02:02]} 13. Ke2 {[%clk 0:02:17]}  Ng4 {[%clk 0:01:26]} 14. Nh3 {[%clk 0:02:11]}  Nge5 {[%clk 0:00:58]} 15. exf5 {[%clk 0:02:06]}  Rc8 {[%clk 0:00:59]} 16. f4 {[%clk 0:02:03]}  Nc4 {[%clk 0:00:58]} 17. Kxd3 {[%clk 0:01:54]}  Nxa3 {[%clk 0:00:58]} 18. Ra1 {[%clk 0:01:45]}  Nc4 {[%clk 0:00:51]} 19. Ke2 {[%clk 0:01:45]}  Qd7 {[%clk 0:00:48]} 20. Nf2 {[%clk 0:00:52]}  gxf5 {[%clk 0:00:28]} 21. Re1 {[%clk 0:00:49]}  Nxd2 {[%clk 0:00:25]} 22. Qxd2 {[%clk 0:00:49]}  Bxc3 {[%clk 0:00:25]} 23. Qd3 {[%clk 0:00:49]}  Bxa1 {[%clk 0:00:12]} 24. Rxa1 {[%clk 0:00:50]}  Rc5 {[%clk 0:00:12]} 25. Rxa5 {[%clk 0:00:25]}  Rfc8 {[%clk 0:00:12]} 26. Ra2 {[%clk 0:00:26]}  Rxb5 {[%clk 0:00:12]} 27. Rd2 {[%clk 0:00:22]}  Rcc5 {[%clk 0:00:11]} 28. Nd1 {[%clk 0:00:21]}  Rc1 {[%clk 0:00:06]} 29. Ne3 {[%clk 0:00:19]}  Rbb1 {[%clk 0:00:05]} 30. Qxf5 {[%clk 0:00:17]}  Re1+ {[%clk 0:00:05]} 31. Kf2 {[%clk 0:00:18]}  Qc7 {[%clk 0:00:04]} 32. Be4 {[%clk 0:00:12]}  Qc3 {[%clk 0:00:05]} 33. Qxh7+ {[%clk 0:00:06]}  Kf8 {[%clk 0:00:06]} 34. Rd3 {[%clk 0:00:04]}  Qb2+ {[%clk 0:00:06]} 35. Kf3 {[%clk 0:00:05]}  Qe2# {[%clk 0:00:06]} 0-1


[Site "https://www.chess.com"]

[Event "Titled Tuesday Blitz August 15 Late 2023"]
[White "Pakleza, Zbigniew"]
[Black "RrainlessBobot"]
[WhiteFideId "1119290"]
[WhiteElo "2821"]
[BlackElo "2533"]
[Result "1-0"]
[Round "4"]
[TimeControl "180+1"]
[Date "2023.08.15"]
[WhiteClock "0:00:04"]
[BlackClock "0:00:01"]
[Board "25"]

1. d4 {[%clk 0:03:00]}  g6 {[%clk 0:02:59]} 2. Nf3 {[%clk 0:03:01]}  Bg7 {[%clk 0:03:00]} 3. Bf4 {[%clk 0:03:01]}  Nf6 {[%clk 0:02:59]} 4. e3 {[%clk 0:03:02]}  O-O {[%clk 0:03:00]} 5. Be2 {[%clk 0:03:03]}  c5 {[%clk 0:03:00]} 6. c3 {[%clk 0:03:03]}  cxd4 {[%clk 0:02:55]} 7. cxd4 {[%clk 0:03:01]}  d6 {[%clk 0:02:55]} 8. Nc3 {[%clk 0:03:01]}  Nh5 {[%clk 0:02:39]} 9. Bg5 {[%clk 0:03:01]}  Nc6 {[%clk 0:02:34]} 10. O-O {[%clk 0:03:00]}  h6 {[%clk 0:02:30]} 11. Bh4 {[%clk 0:03:00]}  g5 {[%clk 0:02:30]} 12. Nd2 {[%clk 0:02:53]}  Nf4 {[%clk 0:02:27]} 13. exf4 {[%clk 0:02:53]}  gxh4 {[%clk 0:02:27]} 14. d5 {[%clk 0:02:52]}  Nd4 {[%clk 0:02:23]} 15. h3 {[%clk 0:02:33]}  Bf5 {[%clk 0:02:02]} 16. Nf3 {[%clk 0:02:06]}  Nxf3+ {[%clk 0:01:57]} 17. Bxf3 {[%clk 0:02:05]}  Qb6 {[%clk 0:01:56]} 18. Qd2 {[%clk 0:01:46]}  Qd4 {[%clk 0:01:57]} 19. Qxd4 {[%clk 0:01:38]}  Bxd4 {[%clk 0:01:56]} 20. Rfe1 {[%clk 0:01:39]}  Bf6 {[%clk 0:01:39]} 21. Be4 {[%clk 0:01:31]}  Bd7 {[%clk 0:01:17]} 22. Rac1 {[%clk 0:01:21]}  Rfc8 {[%clk 0:01:17]} 23. Bf3 {[%clk 0:01:07]}  Rc4 {[%clk 0:01:12]} 24. Ne4 {[%clk 0:00:59]}  Rxc1 {[%clk 0:00:59]} 25. Nxf6+ {[%clk 0:00:58]}  exf6 {[%clk 0:01:00]} 26. Rxc1 {[%clk 0:00:59]}  Rc8 {[%clk 0:01:00]} 27. Rxc8+ {[%clk 0:00:25]}  Bxc8 {[%clk 0:01:01]} 28. Bg4 {[%clk 0:00:25]}  f5 {[%clk 0:00:52]} 29. Be2 {[%clk 0:00:23]}  Kg7 {[%clk 0:00:51]} 30. Kf1 {[%clk 0:00:18]}  Kf6 {[%clk 0:00:46]} 31. Ke1 {[%clk 0:00:17]}  Ke7 {[%clk 0:00:40]} 32. Kd2 {[%clk 0:00:17]}  Kd8 {[%clk 0:00:40]} 33. Ke3 {[%clk 0:00:16]}  Kc7 {[%clk 0:00:39]} 34. Bh5 {[%clk 0:00:08]}  f6 {[%clk 0:00:36]} 35. Kd4 {[%clk 0:00:08]}  b6 {[%clk 0:00:27]} 36. b4 {[%clk 0:00:05]}  Ba6 {[%clk 0:00:28]} 37. g3 {[%clk 0:00:03]}  Bf1 {[%clk 0:00:18]} 38. gxh4 {[%clk 0:00:03]}  Bxh3 {[%clk 0:00:18]} 39. Be2 {[%clk 0:00:03]}  Bg2 {[%clk 0:00:10]} 40. f3 {[%clk 0:00:03]}  Bh3 {[%clk 0:00:10]} 41. Ke3 {[%clk 0:00:03]}  a5 {[%clk 0:00:10]} 42. a3 {[%clk 0:00:02]}  axb4 {[%clk 0:00:05]} 43. axb4 {[%clk 0:00:03]}  h5 {[%clk 0:00:05]} 44. Kf2 {[%clk 0:00:03]}  Kb7 {[%clk 0:00:02]} 45. Kg3 {[%clk 0:00:03]}  Bg4 {[%clk 0:00:02]} 46. fxg4 {[%clk 0:00:04]}  fxg4 {[%clk 0:00:01]} 47. Bd3 {[%clk 0:00:04]} 1-0


[Site "https://www.chess.com"]

[Event "Titled Tuesday Blitz August 15 Late 2023"]
[White "Grischuk, Alexander"]
[Black "Fernandez Guillen, Ernesto J."]
[WhiteFideId "4126025"]
[BlackFideId "3512428"]
[WhiteElo "3034"]
[BlackElo "2743"]
[Result "1-0"]
[Round "4"]
[TimeControl "180+1"]
[Date "2023.08.15"]
[WhiteClock "0:00:03"]
[BlackClock "0:00:17"]
[Board "27"]

1. d4 {[%clk 0:03:00]}  Nf6 {[%clk 0:03:00]} 2. Nf3 {[%clk 0:03:01]}  g6 {[%clk 0:02:58]} 3. e3 {[%clk 0:02:56]}  Bg7 {[%clk 0:02:57]} 4. Be2 {[%clk 0:02:56]}  O-O {[%clk 0:02:57]} 5. O-O {[%clk 0:02:57]}  d5 {[%clk 0:02:54]} 6. b4 {[%clk 0:02:56]}  a5 {[%clk 0:02:52]} 7. b5 {[%clk 0:02:56]}  c6 {[%clk 0:02:50]} 8. Na3 {[%clk 0:02:42]}  Nbd7 {[%clk 0:02:41]} 9. c4 {[%clk 0:02:31]}  Ne4 {[%clk 0:02:34]} 10. Bb2 {[%clk 0:02:28]}  Re8 {[%clk 0:02:30]} 11. Rc1 {[%clk 0:02:26]}  Nb6 {[%clk 0:02:16]} 12. Nd2 {[%clk 0:01:51]}  Nxd2 {[%clk 0:02:09]} 13. Qxd2 {[%clk 0:01:51]}  dxc4 {[%clk 0:02:05]} 14. bxc6 {[%clk 0:01:48]}  bxc6 {[%clk 0:01:58]} 15. Nxc4 {[%clk 0:01:48]}  Nxc4 {[%clk 0:01:57]} 16. Rxc4 {[%clk 0:01:32]}  e5 {[%clk 0:01:54]} 17. Rxc6 {[%clk 0:01:16]}  Bb7 {[%clk 0:01:30]} 18. Rc5 {[%clk 0:01:15]}  exd4 {[%clk 0:01:27]} 19. Bxd4 {[%clk 0:01:14]}  Bxd4 {[%clk 0:01:25]} 20. exd4 {[%clk 0:01:15]}  Qf6 {[%clk 0:01:07]} 21. d5 {[%clk 0:01:01]}  Rad8 {[%clk 0:01:06]} 22. Bf3 {[%clk 0:01:00]}  a4 {[%clk 0:01:02]} 23. h3 {[%clk 0:00:55]}  Kg7 {[%clk 0:00:59]} 24. Rb1 {[%clk 0:00:52]}  Ba8 {[%clk 0:00:57]} 25. Rd1 {[%clk 0:00:43]}  Re5 {[%clk 0:00:56]} 26. Ra5 {[%clk 0:00:40]}  Rf5 {[%clk 0:00:55]} 27. Qd4 {[%clk 0:00:35]}  Re5 {[%clk 0:00:53]} 28. Qxa4 {[%clk 0:00:31]}  Bb7 {[%clk 0:00:42]} 29. Qb4 {[%clk 0:00:31]}  Bc8 {[%clk 0:00:42]} 30. Ra3 {[%clk 0:00:28]}  h5 {[%clk 0:00:41]} 31. Qd2 {[%clk 0:00:23]}  Be6 {[%clk 0:00:34]} 32. Re3 {[%clk 0:00:17]}  Rg5 {[%clk 0:00:28]} 33. Qd4 {[%clk 0:00:17]}  Qxd4 {[%clk 0:00:27]} 34. Rxd4 {[%clk 0:00:16]}  Bxh3 {[%clk 0:00:28]} 35. a4 {[%clk 0:00:14]}  Bd7 {[%clk 0:00:29]} 36. a5 {[%clk 0:00:14]}  Ra8 {[%clk 0:00:29]} 37. Re7 {[%clk 0:00:12]}  Ra7 {[%clk 0:00:26]} 38. a6 {[%clk 0:00:08]}  Kf6 {[%clk 0:00:23]} 39. d6 {[%clk 0:00:08]}  Ra5 {[%clk 0:00:18]} 40. Rf4+ {[%clk 0:00:08]}  Rf5 {[%clk 0:00:16]} 41. Rxf5+ {[%clk 0:00:08]}  gxf5 {[%clk 0:00:17]} 42. Be2 {[%clk 0:00:05]}  f4 {[%clk 0:00:14]} 43. Bb5 {[%clk 0:00:05]}  Ra8 {[%clk 0:00:14]} 44. Rxd7 {[%clk 0:00:05]}  Rb8 {[%clk 0:00:15]} 45. Rb7 {[%clk 0:00:05]}  Rc8 {[%clk 0:00:15]} 46. a7 {[%clk 0:00:05]}  Rc1+ {[%clk 0:00:16]} 47. Kh2 {[%clk 0:00:04]}  Ra1 {[%clk 0:00:17]} 48. d7 {[%clk 0:00:04]}  f3 {[%clk 0:00:17]} 49. d8=Q+ {[%clk 0:00:03]} 1-0


[Site "https://www.chess.com"]